bitfinex/quotes_SOLUSD_20260304
["timestamp","ask_amount","ask_price","bid_price","bid_amount"]
[1772651179514,0.99267167,92.585,92.512,1.0930685]
[1772651180306,0.9898369,92.581,92.512,1.0930685]
[1772651180508,0.9898369,92.575,92.512,1.0930685]
[1772651180884,0.9898369,92.566,92.51,0.2]
[1772651181092,0.9898369,92.566,92.467,0.45503448]
[1772651181093,3.69383402,92.547,92.477,1.10368382]
[1772651181292,0.28432314,92.549,92.477,1.10368382]
[1772651181809,8.62359412,92.54,92.477,1.10368382]
[1772651181986,0.28432314,92.539,92.477,1.10368382]
[1772651182802,264.66743723,92.569,92.467,0.45503448]
[1772651182803,81.02064405,92.569,92.479,1.10368382]
[1772651182998,8.62359412,92.56,92.479,1.10368382]
[1772651183997,3.69383402,92.566,92.479,1.10368382]
[1772651184708,8.62359412,92.56,92.479,1.10368382]
[1772651185712,178.2646744,92.559,92.481,1.10368382]
[1772651186387,0.28432314,92.558,92.481,1.10368382]
[1772651186798,0.28432314,92.549,92.481,1.10368382]
[1772651187212,0.28432314,92.539,92.469,1.10368382]
[1772651187614,0.28432314,92.529,92.467,0.45503448]
[1772651187795,0.28432314,92.527,92.468,11.91823588]
[1772651188116,3.69383402,92.553,92.47,1.10368382]
[1772651188295,43.18358278,92.628,92.484,1.10368382]
[1772651188496,43.18358278,92.628,92.507,1.10368382]
[1772651188810,121.96582274,92.633,92.532,0.28432314]
[1772651189010,0.28432314,92.632,92.535,1.10368382]
[1772651189304,0.28432314,92.629,92.535,1.10368382]
[1772651189699,8.62359412,92.66,92.537,1.38800696]
[1772651189903,8.62359412,92.66,92.546,1.10368382]
[1772651190111,43.1671846,92.663,92.556,1.10368382]
[1772651190112,4.82477569,92.662,92.556,1.10368382]
[1772651190296,3.69383402,92.66,92.556,1.10368382]
[1772651190499,4.82477569,92.646,92.556,1.10368382]
[1772651190902,0.28432314,92.636,92.556,1.10368382]
[1772651191111,0.28432314,92.626,92.543,1.10368382]
[1772651191308,0.28432314,92.616,92.543,1.10368382]
[1772651191612,0.14216157,92.616,92.543,1.10368382]
[1772651191793,0.28432314,92.614,92.543,1.10368382]
[1772651192704,0.28432314,92.611,92.545,1.10368382]
[1772651193793,91.78274483,92.61,92.545,1.10368382]
[1772651193998,91.78274483,92.61,92.547,1.10368382]
[1772651193999,0.28432314,92.606,92.547,1.10368382]
[1772651195219,37.79493547,92.605,92.549,1.10368382]
[1772651196395,91.78770043,92.605,92.549,1.10368382]
[1772651197413,145.78046539,92.605,92.549,1.10368382]
[1772651197617,145.78046539,92.605,92.54,12.4]
[1772651198208,145.78046539,92.605,92.541,1.10368382]
[1772651198519,3.69383402,92.557,92.482,1.10368382]
[1772651199016,3.69383402,92.567,92.482,1.10368382]
[1772651199218,0.28432314,92.566,92.482,1.10368382]
[1772651199409,0.28432314,92.564,92.487,0.14216157]
[1772651199822,0.28432314,92.564,92.487,1.24584539]
[1772651200196,0.28432314,92.564,92.492,1.10368382]
[1772651200923,0.28432314,92.546,92.469,1.10368382]
[1772651201123,0.28432314,92.546,92.473,1.10368382]
[1772651201506,178.2569709,92.563,92.462,1.10368382]
[1772651201507,0.28432314,92.526,92.462,1.10368382]
[1772651202911,91.86706293,92.525,92.462,1.10368382]
[1772651203220,37.82761414,92.525,92.462,1.10368382]
[1772651203607,37.82761414,92.525,92.468,1.10368382]
[1772651203809,91.86706293,92.525,92.468,1.10368382]
[1772651204018,37.82761414,92.525,92.469,1.10368382]
[1772651204820,3.69383402,92.538,92.47,10.81431815]
[1772651205022,3.69383402,92.538,92.471,1.10368382]
[1772651205806,3.69383402,92.537,92.471,1.10368382]
[1772651206407,0.28432314,92.537,92.471,1.10368382]
[1772651207023,0.28432314,92.535,92.473,1.10368382]
[1772651208230,37.82311748,92.536,92.473,1.10368382]
[1772651208529,0.28432314,92.535,92.473,1.10368382]
[1772651208734,3.97815716,92.532,92.473,1.10368382]
[1772651209026,0.28432314,92.527,92.473,1.10368382]
[1772651209824,0.28432314,92.527,92.475,1.10368382]
[1772651210509,0.28432314,92.527,92.461,1.10368382]
[1772651211135,3.69383402,92.523,92.461,1.10368382]
[1772651212037,3.69383402,92.523,92.467,1.5587183]
[1772651213534,3.69383402,92.519,92.468,1.10368382]
[1772651213735,0.99293833,92.518,92.467,0.45503448]
[1772651213932,0.99293833,92.518,92.444,10.81735652]
[1772651214315,178.33596331,92.522,92.45,1e-08]
[1772651214316,0.99293833,92.496,92.45,1e-08]
[1772651214735,0.99021358,92.478,92.45,1e-08]
[1772651215032,8.65107739,92.51,92.45,1e-08]
[1772651215033,3.69383402,92.487,92.45,1e-08]
[1772651215537,3.69383402,92.483,92.45,1e-08]
[1772651216331,3.69383402,92.483,92.383,43.29780728]
[1772651216332,1.04159274,92.482,92.413,10.82092446]
[1772651217044,1.04159274,92.472,92.413,10.82092446]
[1772651217337,37.84970422,92.471,92.413,10.82092446]
[1772651218536,10.8142012,92.471,92.416,0.98839749]
[1772651218746,27.03246457,92.482,92.416,0.98839749]
[1772651219123,37.84561152,92.481,92.416,0.98839749]
[1772651219433,10.81303186,92.481,92.416,0.98839749]
[1772651219618,1.03635912,92.498,92.415,0.28432314]
[1772651219619,27.02970975,92.491,92.427,0.98839749]
[1772651220027,27.02970975,92.491,92.437,0.98839749]
[1772651220253,10.81116144,92.497,92.437,0.98839749]
[1772651220950,37.83906504,92.497,92.437,0.98839749]
[1772651221148,1.02804569,92.496,92.437,0.98839749]
[1772651221645,1.02479232,92.492,92.437,0.98839749]
[1772651222234,1.02479232,92.492,92.439,0.98839749]
[1772651222552,1.02479232,92.492,92.427,0.98839749]
[1772651222782,1.02479232,92.492,92.429,0.98839749]
[1772651223134,37.84070145,92.493,92.429,0.98839749]
[1772651223135,1.02457504,92.489,92.429,0.98839749]
[1772651223637,1.02436026,92.484,92.419,0.98839749]
[1772651224755,1.02414794,92.482,92.42,0.98839749]
[1772651225149,1.02414794,92.477,92.411,0.98839749]
[1772651225856,1.0469414,92.464,92.369,10.82614297]
[1772651226162,1.0469414,92.464,92.369,37.89126294]
[1772651226482,1.0469414,92.464,92.37,0.28432314]
[1772651226640,1.0469414,92.464,92.369,10.82614297]
[1772651226841,1.0469414,92.459,92.37,0.28432314]
[1772651227341,1.0469414,92.447,92.369,10.82614297]
[1772651227540,1.0469414,92.446,92.369,10.82614297]
[1772651227858,1.0469414,92.436,92.346,0.98839749]
[1772651228039,1.0469414,92.436,92.347,0.98839749]
[1772651228239,1.0469414,92.425,92.347,0.98839749]
[1772651228952,1.0469414,92.425,92.321,43.32705473]
[1772651228953,1.0469414,92.423,92.357,0.98839749]
[1772651230946,1.0469414,92.421,92.359,0.98839749]
[1772651231762,1.0469414,92.418,92.359,0.98839749]
[1772651231965,1.0469414,92.416,92.323,38.19470299]
[1772651232166,1.0469414,92.396,92.323,10.8315371]
[1772651232366,1.0469414,92.396,92.323,11.81993459]
[1772651232667,1.0469414,92.396,92.324,0.98839749]
[1772651232965,221.80866025,92.422,92.328,0.98839749]
[1772651232966,1.0469414,92.391,92.328,0.98839749]
[1772651233171,1.0469414,92.391,92.3,0.2]
[1772651233172,1.0469414,92.386,92.315,0.98839749]
[1772651234251,3.69383402,92.377,92.315,0.98839749]
[1772651234457,1.0469414,92.375,92.304,0.98839749]
[1772651235043,1.0469414,92.373,92.304,0.98839749]
[1772651235463,3.69383402,92.367,92.304,0.98839749]
[1772651235661,1.0469414,92.366,92.304,0.98839749]
[1772651237468,1.0469414,92.364,92.306,0.98839749]
[1772651239155,1.01820291,92.362,92.306,0.98839749]
[1772651239477,1.01820291,92.362,92.302,0.92457282]
[1772651240281,1.01820291,92.362,92.306,0.92457282]
[1772651241155,10.82684624,92.363,92.306,0.92457282]
[1772651241355,11.84387707,92.373,92.312,0.28432314]
[1772651241551,10.82567416,92.373,92.317,0.92457282]
[1772651241756,1.01820291,92.411,92.335,0.92457282]
[1772651242057,10.8218081,92.406,92.347,0.92457282]
[1772651242371,37.87632836,92.406,92.347,0.92457282]
[1772651243055,1.01820291,92.405,92.345,0.92457282]
[1772651243474,37.87714816,92.404,92.347,0.92457282]
[1772651243770,37.87714816,92.404,92.346,10.82883936]
[1772651243771,10.82204233,92.404,92.354,0.28432314]
[1772651243981,10.82204233,92.404,92.357,0.92457282]
[1772651245381,27.05129291,92.418,92.359,0.92457282]
[1772651246895,27.05129291,92.418,92.361,0.97737085]
[1772651247574,10.81841293,92.435,92.375,0.97737085]
[1772651247770,10.81841293,92.435,92.377,0.97737085]
[1772651247971,0.92010276,92.434,92.377,0.97737085]
[1772651248167,10.81841293,92.435,92.387,0.97737085]
[1772651248691,0.92010276,92.432,92.377,11.80257207]
[1772651248872,0.92010276,92.432,92.378,0.97737085]
[1772651249989,0.1,92.47,92.386,0.97737085]
[1772651249990,10.81747671,92.443,92.386,0.97737085]
[1772651250368,0.92010276,92.442,92.386,0.97737085]
[1772651251391,10.81771075,92.441,92.388,0.97737085]
[1772651251590,38.7820904,92.441,92.388,0.97737085]
[1772651252392,0.92010276,92.44,92.388,0.97737085]
[1772651254397,10.8179448,92.439,92.39,0.97737085]
[1772651255284,10.8179448,92.439,92.396,0.97737085]
[1772651256391,38.77799737,92.451,92.398,0.97737085]
[1772651256573,0.92010276,92.45,92.398,0.97737085]
[1772651256770,0.92010276,92.45,92.354,0.97737085]
[1772651257077,0.92010276,92.446,92.367,0.97737085]
[1772651257478,0.92010276,92.45,92.383,0.97737085]
[1772651257680,0.92010276,92.45,92.387,0.97737085]
[1772651258471,0.92010276,92.448,92.389,0.97737085]
[1772651260493,0.92010276,92.448,92.37,54.12969515]
[1772651260494,0.92010276,92.446,92.391,0.97737085]
[1772651261982,104.9,92.505,92.407,0.97737085]
[1772651261983,10.81583871,92.457,92.407,0.97737085]
[1772651262201,10.81528656,92.462,92.407,0.97737085]
[1772651262507,0.92010276,92.461,92.376,0.97737085]
[1772651262685,0.92010276,92.456,92.373,0.97737085]
[1772651262879,0.92010276,92.446,92.373,0.97737085]
[1772651264003,0.92010276,92.446,92.375,0.97737085]
[1772651264188,0.92010276,92.446,92.377,0.97737085]
[1772651264388,0.92010276,92.444,92.379,0.97737085]
[1772651265386,0.92010276,92.444,92.387,0.97737085]
[1772651266210,10.81724268,92.445,92.387,0.97737085]
[1772651266407,0.92010276,92.455,92.391,0.97737085]
[1772651266609,0.92010276,92.455,92.397,0.97737085]
[1772651268011,37.85612679,92.456,92.397,0.97737085]
[1772651268386,3.69383402,92.472,92.397,0.97737085]
[1772651268604,10.81386465,92.474,92.412,0.28432314]
[1772651268825,0.92760215,92.479,92.401,3.69383402]
[1772651268826,10.81376529,92.475,92.427,0.95435459]
[1772651269396,0.92760215,92.479,92.427,0.95435459]
[1772651269704,10.81243219,92.487,92.437,0.95435459]
[1772651270007,0.92760215,92.489,92.437,0.95435459]
[1772651270190,0.92760215,92.468,92.406,0.95435459]
[1772651270609,0.92760215,92.466,92.407,10.6408191]
[1772651270789,3.69383402,92.457,92.381,10.82473668]
[1772651270993,0.92760215,92.449,92.381,10.82473668]
[1772651271611,0.92760215,92.449,92.381,37.8865784]
[1772651272610,0.92760215,92.447,92.394,0.28432314]
[1772651272909,10.81689165,92.448,92.397,0.95435459]
[1772651273292,0.92760215,92.458,92.397,0.95435459]
[1772651273698,10.81548777,92.46,92.405,0.95435459]
[1772651273893,0.92760215,92.459,92.407,0.95435459]
[1772651274093,0.92760215,92.459,92.396,0.95435459]
[1772651274695,0.92760215,92.457,92.398,0.95435459]
[1772651276811,0.92760215,92.455,92.4,0.95435459]
[1772651278821,0.92760215,92.453,92.402,0.95435459]
[1772651280709,0.92760215,92.453,92.401,37.87837793]
[1772651281007,0.92760215,92.451,92.401,0.95435459]
[1772651282601,0.92760215,92.446,92.38,10.8247933]
[1772651283021,0.92760215,92.444,92.38,0.95435459]
[1772651283413,0.92760215,92.444,92.384,0.95435459]
[1772651283601,0.92760215,92.444,92.386,0.95435459]
[1772651285018,0.92760215,92.442,92.392,0.28432314]
[1772651285225,0.92760215,92.442,92.397,0.95435459]
[1772651285923,37.86116849,92.443,92.397,0.95435459]
[1772651286542,10.81747671,92.443,92.397,0.95435459]
[1772651287105,10.81771075,92.441,92.398,10.82274508]
[1772651287325,10.81771075,92.441,92.399,0.95435459]
[1772651289322,10.81771075,92.441,92.401,0.95435459]
[1772651289519,10.81662662,92.451,92.407,0.95435459]
[1772651290115,10.81662662,92.451,92.4,37.87878787]
[1772651290116,10.81513686,92.463,92.409,0.95435459]
[1772651290319,10.81455181,92.469,92.427,0.95435459]
[1772651290718,0.92760215,92.468,92.427,0.95435459]
[1772651291030,0.92760215,92.468,92.402,0.95435459]
[1772651291331,0.92760215,92.466,92.402,0.95435459]
[1772651291832,0.92760215,92.466,92.404,0.95435459]
[1772651292023,0.92760215,92.466,92.406,0.95435459]
[1772651292207,37.85134155,92.467,92.406,0.95435459]
[1772651293324,0.1,92.47,92.428,0.95435459]
[1772651294226,0.92760215,92.469,92.428,0.95435459]
[1772651295112,0.1,92.47,92.428,0.95435459]
[1772651295707,0.1,92.47,92.43,0.95435459]
[1772651295708,1.02760215,92.47,92.43,0.95435459]
[1772651295913,1.02760215,92.47,92.421,0.95435459]
[1772651296829,0.1,92.47,92.427,0.95435459]
[1772651297344,0.92760215,92.468,92.428,11.77358685]
[1772651297531,0.92760215,92.468,92.429,0.95435459]
[1772651300046,0.98241938,92.466,92.431,0.95513334]
[1772651300429,10.81466901,92.467,92.431,0.95513334]
[1772651300938,0.98241938,92.466,92.431,0.95513334]
[1772651301248,0.1,92.47,92.43,10.81899816]
[1772651301249,0.1,92.47,92.437,0.95513334]
[1772651302048,0.98241938,92.467,92.43,0.95513334]
[1772651302839,0.98241938,92.467,92.42,0.95513334]
[1772651303426,37.85093221,92.468,92.409,38.15942188]
[1772651303427,10.81455206,92.468,92.426,0.95513334]
[1772651303625,0.1,92.47,92.426,0.95513334]
[1772651304232,0.1,92.47,92.432,0.28432314]
[1772651304437,0.1,92.47,92.437,0.95513334]
[1772651306263,0.1,92.47,92.439,0.90032893]
[1772651306671,10.81244728,92.486,92.447,0.90032893]
[1772651307164,0.95795291,92.504,92.457,0.90032893]
[1772651308347,0.95795291,92.502,92.459,0.90032893]
[1772651309242,0.95795291,92.502,92.445,0.28432314]
[1772651309448,0.95795291,92.502,92.445,1.18465207]
[1772651310044,0.95795291,92.502,92.427,0.90032893]
[1772651310259,0.95795291,92.494,92.427,0.90032893]
[1772651310742,8.66478504,92.49,92.417,0.90032893]
[1772651310947,0.95795291,92.486,92.417,0.90032893]
[1772651312070,0.95795291,92.486,92.421,0.90032893]
[1772651312374,0.95795291,92.484,92.429,0.90032893]
[1772651312895,0.95795291,92.484,92.437,0.90032893]
[1772651314396,0.95795291,92.484,92.428,37.86731292]
[1772651314397,0.95795291,92.482,92.439,0.90032893]
[1772651316078,0.95795291,92.482,92.428,0.90032893]
[1772651316372,37.84561152,92.481,92.42,0.90032893]
[1772651316570,37.84561152,92.481,92.419,10.82028587]
[1772651316571,0.95795291,92.48,92.426,0.90032893]
[1772651316794,0.95795291,92.48,92.436,0.90032893]
[1772651317692,0.95795291,92.48,92.426,0.90032893]
[1772651318682,0.95795291,92.478,92.428,0.90032893]
[1772651319984,0.95795291,92.476,92.419,0.90032893]
[1772651320990,0.95795291,92.476,92.407,0.90032893]
[1772651321298,135.16874465,92.477,92.407,0.90032893]
[1772651321299,0.95795291,92.473,92.407,0.90032893]
[1772651321612,135.16874465,92.477,92.396,0.90032893]
[1772651321613,0.95795291,92.456,92.396,0.90032893]
[1772651321790,0.95795291,92.456,92.398,0.90032893]
[1772651322108,0.95795291,92.454,92.4,0.90032893]
[1772651322300,0.95795291,92.454,92.406,0.90032893]
[1772651323104,0.95795291,92.473,92.41,0.90032893]
[1772651323292,0.95795291,92.485,92.426,0.90032893]
[1772651323885,0.95795291,92.483,92.435,0.90032893]
[1772651325793,37.8452023,92.482,92.437,0.90032893]
[1772651326688,0.95795291,92.481,92.443,0.90032893]
[1772651327926,0.95795291,92.479,92.419,1.18465207]
[1772651328102,0.95795291,92.479,92.42,0.90032893]
[1772651328698,0.95795291,92.479,92.426,0.93168818]
[1772651329924,10.81338264,92.478,92.431,0.93168818]
[1772651330221,10.81338264,92.478,92.427,37.86772263]
[1772651330222,10.81338264,92.478,92.437,0.93168818]
[1772651331226,0.9127609,92.477,92.437,0.93168818]
[1772651332006,0.9127609,92.475,92.438,10.81806183]
[1772651332319,0.9127609,92.475,92.439,0.93168818]
[1772651333025,10.8136165,92.476,92.439,0.93168818]
[1772651334112,0.9127609,92.485,92.441,0.93168818]
[1772651334810,0.9127609,92.485,92.434,0.14216157]
[1772651335010,0.9127609,92.485,92.436,1.07384975]
[1772651336330,0.9127609,92.483,92.438,0.93168818]
[1772651338230,0.9127609,92.481,92.43,0.93168818]
[1772651338418,0.9127609,92.481,92.439,0.058301]
[1772651339532,0.9127609,92.481,92.44,0.93168818]
[1772651340537,0.9127609,92.479,92.442,0.93168818]
[1772651340832,0.9127609,92.479,92.439,0.058301]
[1772651341013,0.9127609,92.479,92.441,0.93168818]
[1772651343118,0.9127609,92.487,92.443,0.93168818]
[1772651345129,0.9127609,92.482,92.387,104.4]
[1772651345331,3.69383402,92.483,92.374,38.97200509]
[1772651345332,0.9127609,92.476,92.374,38.97200509]
[1772651345517,0.9127609,92.476,92.377,3.69383402]
[1772651346038,0.9127609,92.476,92.378,3.69383402]
[1772651346226,0.9127609,92.476,92.382,8.51860971]
[1772651346425,0.9127609,92.476,92.387,0.28432314]
[1772651346827,10.81244728,92.486,92.392,8.80293285]
[1772651347126,10.81244728,92.486,92.419,1.21601132]
[1772651347325,10.81244728,92.486,92.44,0.93168818]
[1772651347527,8.6617465,92.53,92.418,3.69383402]
[1772651347528,27.99257401,92.506,92.456,0.93168818]
[1772651347731,0.9127609,92.504,92.456,0.93168818]
[1772651349140,0.9127609,92.502,92.461,0.93168818]
[1772651349333,0.9127609,92.502,92.457,10.81583871]
[1772651349856,0.9127609,92.502,92.451,0.93168818]
[1772651350747,0.9127609,92.5,92.457,10.81583871]
[1772651350926,0.9127609,92.5,92.458,0.93168818]
[1772651351522,0.9127609,92.5,92.445,0.93168818]
[1772651351726,0.9127609,92.5,92.45,10.81665765]
[1772651352147,0.9127609,92.5,92.451,0.93168818]
[1772651352527,0.9127609,92.5,92.456,0.28432314]
[1772651352722,0.9127609,92.5,92.457,0.93168818]
[1772651352941,37.83742877,92.501,92.45,37.85830178]
[1772651352942,0.9127609,92.498,92.459,0.93168818]
[1772651353161,0.9127609,92.498,92.446,0.93168818]
[1772651353647,0.9127609,92.498,92.449,11.15689983]
[1772651354163,0.9127609,92.498,92.45,0.93168818]
[1772651354831,37.83906504,92.497,92.451,10.81654065]
[1772651355033,0.9127609,92.496,92.451,10.81654065]
[1772651355545,0.9127609,92.496,92.449,0.34018249]
[1772651355953,0.96722375,92.506,92.464,0.14216157]
[1772651355954,10.81067259,92.502,92.464,0.14216157]
[1772651356134,10.81067259,92.502,92.467,0.93168818]
[1772651356533,0.96722375,92.506,92.471,0.93168818]
[1772651356752,0.9127609,92.535,92.487,0.93168818]
[1772651356938,0.9127609,92.535,92.489,0.93168818]
[1772651356939,10.80683856,92.534,92.489,0.93168818]
[1772651357456,38.73669587,92.534,92.489,0.93168818]
[1772651357633,0.9127609,92.533,92.489,0.93168818]
[1772651358457,0.9127609,92.533,92.497,0.90372159]
[1772651358841,10.80707214,92.532,92.498,10.81104456]
[1772651359041,10.80707214,92.532,92.499,0.90372159]
[1772651359353,0.92087828,92.531,92.49,0.90372159]
[1772651360454,0.92087828,92.529,92.491,10.81186277]
[1772651360751,0.92087828,92.529,92.491,11.71558436]
[1772651360954,10.80730573,92.53,92.492,0.90372159]
[1772651361676,0.92087828,92.529,92.492,0.90372159]
[1772651361836,10.80753933,92.528,92.494,0.90372159]
[1772651363943,10.80753933,92.528,92.495,10.81139521]
[1772651364255,0.92087828,92.527,92.496,0.90372159]
[1772651365141,10.8067667,92.535,92.496,0.90372159]
[1772651365452,0.92087828,92.534,92.496,0.90372159]
[1772651366247,0.92087828,92.534,92.495,10.81139521]
[1772651366248,0.92087828,92.534,92.498,0.94547912]
[1772651366553,0.97572334,92.533,92.498,0.94547912]
[1772651366955,0.97572334,92.533,92.492,10.81163339]
[1772651367256,0.97572334,92.533,92.493,0.94547912]
[1772651368137,0.97572334,92.531,92.495,0.94547912]
[1772651368738,0.97572334,92.531,92.494,10.81151209]
[1772651370646,0.97572334,92.529,92.489,10.81209657]
[1772651371045,0.97572334,92.529,92.489,11.75757569]
[1772651371242,0.97572334,92.529,92.488,0.33535921]
[1772651372274,0.97572334,92.529,92.456,0.94547912]
[1772651372443,0.97572334,92.526,92.456,0.94547912]
[1772651372643,0.97572334,92.524,92.458,0.94547912]
[1772651374273,0.97572334,92.524,92.466,0.94547912]
[1772651374651,0.97572334,92.516,92.432,0.94547912]
[1772651374952,0.97572334,92.516,92.437,0.94547912]
[1772651375152,0.97572334,92.516,92.447,0.94547912]
[1772651376872,0.97572334,92.514,92.449,0.94547912]
[1772651378961,0.97572334,92.512,92.451,11.76201977]
[1772651379365,0.97572334,92.512,92.452,0.94547912]
[1772651380274,0.97572334,92.496,92.434,10.81848529]
[1772651380465,0.97572334,92.489,92.43,0.29806517]
[1772651381071,0.97572334,92.487,92.43,0.29806517]
[1772651382264,0.97572334,92.487,92.431,0.94547912]
[1772651382979,0.97572334,92.477,92.43,1e-08]
[1772651383682,0.97572334,92.466,92.43,1e-08]
[1772651385175,0.97572334,92.464,92.43,1e-08]
[1772651386193,0.97572334,92.456,92.392,10.82333884]
[1772651386367,0.97572334,92.456,92.393,0.94547912]
[1772651386881,0.97572334,92.456,92.393,11.76880989]
[1772651387867,0.97572334,92.449,92.383,0.94547912]
[1772651388078,135.20090854,92.455,92.34,0.2]
[1772651388079,0.97572334,92.389,92.34,0.2]
[1772651388390,0.97572334,92.389,92.341,0.94547912]
[1772651389176,0.93624656,92.379,92.319,0.96546316]
[1772651389794,4.82477569,92.406,92.309,0.96546316]
[1772651389795,0.93624656,92.369,92.309,0.96546316]
[1772651390006,0.93624656,92.367,92.309,0.96546316]
[1772651390387,0.93624656,92.367,92.305,10.83353732]
[1772651390883,0.93624656,92.367,92.298,11.79983129]
[1772651391888,135.33118245,92.366,92.298,0.96546316]
[1772651392092,0.93624656,92.349,92.31,1e-08]
[1772651393496,0.93624656,92.349,92.312,0.96546316]
[1772651394187,0.93624656,92.347,92.312,0.96546316]
[1772651394587,0.93624656,92.347,92.31,1e-08]
[1772651394784,0.93624656,92.347,92.311,10.83294515]
[1772651394993,10.82860484,92.348,92.312,0.96546316]
[1772651395589,10.82685052,92.363,92.316,0.96546316]
[1772651396183,11.76309708,92.363,92.316,0.96546316]
[1772651396378,10.82685052,92.363,92.318,0.96546316]
[1772651396592,0.93624656,92.362,92.318,0.96546316]
[1772651397203,0.93624656,92.362,92.31,1e-08]
[1772651398497,0.93624656,92.36,92.312,0.96546316]
[1772651399299,37.89478242,92.361,92.312,0.96546316]
[1772651399300,0.93624656,92.37,92.312,0.96546316]
[1772651399497,10.82614297,92.369,92.321,0.96546316]
[1772651399698,11.76238953,92.369,92.321,0.96546316]
[1772651400403,0.93624656,92.368,92.32,12.4]
[1772651400904,0.93624656,92.366,92.312,0.96546316]
[1772651401103,0.93624656,92.366,92.316,0.96546316]
[1772651401285,10.82532259,92.376,92.326,0.96546316]
[1772651401485,0.93624656,92.375,92.326,0.96546316]
[1772651402201,10.82471232,92.382,92.326,0.96546316]
[1772651402711,10.82412632,92.387,92.326,0.96546316]
[1772651402903,0.93624656,92.394,92.331,0.96546316]
[1772651403107,0.93624656,92.394,92.337,0.96546316]
[1772651403610,3.69383402,92.387,92.327,0.96546316]
[1772651403787,0.93624656,92.386,92.327,0.96546316]
[1772651403988,0.93624656,92.379,92.312,0.96546316]
[1772651404310,0.93624656,92.379,92.316,0.96546316]
[1772651404994,3.69383402,92.392,92.318,0.96546316]
[1772651404995,0.93624656,92.377,92.318,0.96546316]
[1772651405185,10.82456901,92.383,92.324,0.96546316]
[1772651405389,10.82456901,92.383,92.334,0.96546316]
[1772651405803,0.93624656,92.387,92.334,0.96546316]
[1772651406014,10.82415084,92.386,92.334,0.96546316]
[1772651406319,0.93624656,92.385,92.334,0.96546316]
[1772651406684,0.93624656,92.385,92.318,0.96546316]
[1772651407111,0.93624656,92.376,92.318,0.96546316]
[1772651407605,0.93624656,92.376,92.319,10.83200641]
[1772651407808,0.93624656,92.376,92.32,0.96546316]
[1772651409711,0.93624656,92.374,92.322,0.96546316]
[1772651410606,10.82496213,92.38,92.324,0.96546316]
[1772651411700,0.93624656,92.417,92.343,0.28432314]
[1772651411906,0.93624656,92.414,92.344,0.96546316]
[1772651413811,10.82051454,92.418,92.365,0.96546316]
[1772651414111,0.93624656,92.435,92.385,0.96546316]
[1772651414306,10.81877037,92.432,92.385,0.96546316]
[1772651414505,0.93624656,92.431,92.374,0.96546316]
[1772651415713,0.93624656,92.429,92.376,0.96546316]
[1772651417798,0.93624656,92.427,92.378,0.96546316]
[1772651419816,0.99244426,92.425,92.378,0.96546316]
[1772651420319,0.99244426,92.425,92.38,0.96964924]
[1772651422016,0.99244426,92.423,92.382,0.96964924]
[1772651424217,54.08462625,92.448,92.368,27.06544184]
[1772651424218,0.99244426,92.421,92.376,10.82523871]
[1772651424418,0.99244426,92.421,92.377,0.96964924]
[1772651426313,1.03374517,92.419,92.379,1.00834275]
[1772651427731,1.03374517,92.419,92.374,10.82555095]
[1772651427920,1.03374517,92.419,92.375,1.00834275]
[1772651428324,10.82040295,92.418,92.377,1.00834275]
[1772651428802,1.03374517,92.417,92.377,1.00834275]
[1772651429010,1.03374517,92.417,92.369,1.00834275]
[1772651430112,10.82040295,92.418,92.369,1.00834275]
[1772651431322,1.03374517,92.419,92.371,1.00834275]
[1772651432222,1.03374517,92.419,92.374,0.28432314]
[1772651432415,1.03374517,92.419,92.375,1.00834275]
[1772651432821,1.03374517,92.448,92.375,1.00834275]
[1772651433023,1.03374517,92.448,92.385,1.00834275]
[1772651433415,1.03374517,92.446,92.395,1.00834275]
[1772651435427,1.03374517,92.444,92.397,1.00834275]
[1772651436028,1.03374517,92.444,92.396,10.82297934]
[1772651436331,1.03374517,92.444,92.397,1.00834275]
[1772651436929,1.03374517,92.444,92.39,10.8235867]
[1772651437233,1.03374517,92.444,92.386,1.00834275]
[1772651437438,1.03374517,92.442,92.386,1.00834275]
[1772651438835,1.03374517,92.44,92.387,10.82403368]
[1772651439138,1.03374517,92.44,92.388,1.00834275]
[1772651439717,37.86198764,92.441,92.388,1.00834275]
[1772651439925,10.81665765,92.45,92.398,1.00834275]
[1772651440123,10.81665765,92.45,92.404,1.00834275]
[1772651440530,1.03374517,92.47,92.404,1.00834275]
[1772651441439,1.03374517,92.468,92.41,0.28432314]
[1772651441633,1.03374517,92.468,92.415,1.00834275]
[1772651443124,10.81466901,92.467,92.417,1.00834275]
[1772651443743,10.81466901,92.467,92.425,1.00834275]
[1772651445848,1.03374517,92.475,92.427,1.00834275]
[1772651447638,10.81385037,92.474,92.413,1.00834275]
[1772651447840,1.03374517,92.473,92.415,1.00834275]
[1772651449957,1.03374517,92.473,92.398,3.69383402]
[1772651449958,1.05751314,92.471,92.416,10.82063711]
[1772651450132,1.05751314,92.471,92.416,11.84229651]
[1772651450328,1.05751314,92.471,92.417,1.0216594]
[1772651451031,1.05751314,92.471,92.405,1.0216594]
[1772651451956,1.05751314,92.471,92.406,1.0216594]
[1772651452134,1.05751314,92.469,92.408,1.0216594]
[1772651452727,1.05751314,92.469,92.391,3.69383402]
[1772651452930,1.05751314,92.466,92.389,1.0216594]